[Event "LJ Slovak Open 2022"]
[Site "Liptovsky Jan"]
[Date "2022.06.25"]
[Round "5.23"]
[White "Ziaran, Viliam"]
[Black "Janouskova, Eliska"]
[Result "1-0"]
[ECO "B22"]
[WhiteElo "1832"]
[BlackElo "1167"]
[Annotator "NA RC"]
[PlyCount "99"]
[EventDate "2022.06.23"]
[EventType "swiss"]
[EventCountry "SVK"]
[SourceTitle "playchess.com"]
[Source "ChessBase"]
[SourceQuality "1"]
[TimeControl "3600+30"]

1. e4 {[%emt 0:00:50]} c5 {[%emt 0:00:03]} 2. c3 {[%emt 0:00:11]} Nf6 {[%emt 0:01:14]} 3. e5 {[%emt 0:00:17]} Nd5 {[%emt 0:00:28]} 4. Nf3 {[%emt 0:00:35]} e6 {[%emt 0:01:10]} 5. d4 {[%emt 0:00:18]} cxd4 {[%emt 0:00:13]} 6. cxd4 {[%emt 0:00:09]} d6 {[%emt 0:02:31]} 7. Bb5+ {[%emt 0:01:55]} Bd7 {[%emt 0:02:57]} 8. Bxd7+ {[%emt 0:00:37]} Nxd7 {[%emt 0:02:35]} 9. exd6 {[%emt 0:00:21]} Bxd6 {[%emt 0:00:08]} 10. O-O {[%emt 0:00:12]} O-O {[%emt 0:00:58]} 11. Nc3 {[%emt 0:00:14]} N7f6 {[%emt 0:03:11]} 12. Re1 {[%emt 0:02:10]} a6 {[%emt 0:02:54]} 13. Bg5 {[%emt 0:01:18]} Qc7 {[%emt 0:02:15]} 14. Rc1 {[%emt 0:00:49]} Nxc3 {[%emt 0:01:28]} 15. bxc3 {[%emt 0:00:38]} Nd5 {[%emt 0:04:06]} 16. c4 {[%emt 0:01:43]} Nf4 {[%emt 0:02:28]} 17. c5 {[%emt 0:04:31]} Be7 {[%emt 0:00:32]} 18. Bxe7 {[%emt 0:00:28]} Qxe7 {[%emt 0:00:22]} 19. d5 {[%emt 0:00:58]} Qd7 {[%emt 0:05:09]} 20. d6 {[%emt 0:03:20]} Qc6 {[%emt 0:02:47]} 21. g3 {[%emt 0:04:00]} Nd5 {[%emt 0:02:06]} 22. Ne5 {[%emt 0:01:45]} Qc8 {[%emt 0:03:37]} 23. Qb3 {[%emt 0:02:54]} Rd8 {[%emt 0:01:51]} 24. c6 {[%emt 0:02:01]} b5 {[%emt 0:06:31]} 25. d7 {[%emt 0:01:22]} Qc7 {[%emt 0:00:36]} 26. Qf3 {[%emt 0:01:42]} Nf6 {[%emt 0:02:14]} 27. g4 {[%emt 0:06:28]} h6 {[%emt 0:01:13]} 28. h4 {[%emt 0:01:38]} Rf8 {[%emt 0:00:25]} 29. Kg2 {[%emt 0:01:35]} Rad8 {[%emt 0:01:57]} 30. Qg3 {[%emt 0:03:12]} Nd5 {[%emt 0:02:59]} 31. Nd3 {[%emt 0:00:52]} Rb8 {[%emt 0:02:59]} 32. a3 {[%emt 0:02:38]} Qxg3+ {[%emt 0:01:16]} 33. Kxg3 {[%emt 0:00:21]} Nc7 {[%emt 0:00:09]} 34. Nc5 {[%emt 0:01:17]} Kh7 {[%emt 0:03:57]} 35. Nb7 {[%emt 0:00:35]} f5 {[%emt 0:00:29]} 36. gxf5 {[%emt 0:01:38]} exf5 {[%emt 0:00:29]} 37. Rcd1 {[%emt 0:01:15]} f4+ {[%emt 0:00:55]} 38. Kf3 {[%emt 0:00:43]} a5 {[%emt 0:01:52]} 39. d8=Q {[%emt 0:00:22]} Rbxd8 {[%emt 0:00:29]} 40. Rxd8 {[%emt 0:00:09]} Rf6 {[%emt 0:00:22]} 41. Nxa5 {[%emt 0:00:16]} Kg6 {[%emt 0:00:38]} 42. Rd7 {[%emt 0:00:14]} Ne6 {[%emt 0:00:25]} 43. Rxe6 {[%emt 0:00:25]} Rxe6 {[%emt 0:00:11]} 44. c7 {[%emt 0:00:10]} b4 {[%emt 0:00:06]} 45. axb4 {[%emt 0:00:08]} h5 {[%emt 0:00:18]} 46. c8=Q {[%emt 0:00:10]} Kh6 {[%emt 0:00:42]} 47. Rd8 {[%emt 0:00:21]} Rf6 {[%emt 0:00:41]} 48. Rh8+ {[%emt 0:00:12]} Kg6 {[%emt 0:00:10]} 49. Qe8+ {[%emt 0:00:06]} Kf5 {[%emt 0:00:18]} 50. Rxh5+ {[%emt 0:00:12]} 1-0

[Event "LJ Slovak Open 2022"]
[Site "Liptovsky Jan"]
[Date "2022.06.25"]
[Round "5.24"]
[White "Kasperek, Ryszard"]
[Black "Marcek, Jan"]
[Result "1-0"]
[ECO "C01"]
[WhiteElo "2068"]
[BlackElo "1588"]
[Annotator "NA RC"]
[PlyCount "36"]
[EventDate "2022.06.23"]
[EventType "swiss"]
[EventCountry "SVK"]
[SourceTitle "playchess.com"]
[Source "ChessBase"]
[SourceQuality "1"]
[TimeControl "3600+30"]

1. e4 {[%emt 0:00:42]} e6 {[%emt 0:00:10]} 2. d4 {[%emt 0:00:07]} d6 {[%emt 0:00:03]} 3. Nf3 {[%emt 0:03:04]} Be7 {[%emt 0:00:09]} 4. Bd3 {[%emt 0:00:41]} Nd7 {[%emt 0:00:31]} 5. O-O {[%emt 0:01:21]} a6 {[%emt 0:00:58]} 6. Qe2 {[%emt 0:01:45]} c5 {[%emt 0:02:00]} 7. c3 {[%emt 0:02:42]} h6 {[%emt 0:02:01]} 8. e5 {[%emt 0:03:11]} d5 {[%emt 0:05:31]} 9. Nbd2 {[%emt 0:01:48]} c4 {[%emt 0:01:07]} 10. Bc2 {[%emt 0:00:04]} b5 {[%emt 0:02:28]} 11. b3 {[%emt 0:02:04]} Bb7 {[%emt 0:07:24]} 12. a4 {[%emt 0:07:29]} Rc8 {[%emt 0:02:57]} 13. b4 {[%emt 0:00:30]} Bc6 {[%emt 0:06:28]} 14. h3 {[%emt 0:04:17]} g5 {[%emt 0:02:31]} 15. Nh2 {[%emt 0:00:38]} Nf8 {[%emt 0:02:54]} 16. f4 {[%emt 0:00:27]} h5 {[%emt 0:00:59]} 17. fxg5 {[%emt 0:02:06]} Bd7 {[%emt 0:00:46]} 18. Nhf3 {[%emt 0:01:13]} Nh6 {[%emt 0:13:51]} 1-0

[Event "LJ Slovak Open 2022"]
[Site "Liptovsky Jan"]
[Date "2022.06.25"]
[Round "5.25"]
[White "Chlpek, Daniel"]
[Black "Carnecka, Stella"]
[Result "1-0"]
[ECO "A08"]
[WhiteElo "2030"]
[BlackElo "1648"]
[Annotator "NA RC"]
[PlyCount "53"]
[EventDate "2022.06.23"]
[EventType "swiss"]
[EventCountry "SVK"]
[SourceTitle "playchess.com"]
[Source "ChessBase"]
[SourceQuality "1"]
[TimeControl "3600+30"]

1. Nf3 {[%emt 0:00:22]} d5 {[%emt 0:00:07]} 2. g3 {[%emt 0:00:09]} c5 {[%emt 0:00:24]} 3. Bg2 {[%emt 0:00:09]} Bf5 {[%emt 0:00:50]} 4. O-O {[%emt 0:00:20]} e6 {[%emt 0:00:09]} 5. c4 {[%emt 0:00:30]} Nf6 {[%emt 0:02:53]} 6. cxd5 {[%emt 0:01:35]} Nxd5 {[%emt 0:00:57]} 7. d3 {[%emt 0:00:46]} Bg6 {[%emt 0:00:20]} 8. Ne5 {[%emt 0:01:29]} Qf6 {[%emt 0:04:53]} 9. Qa4+ {[%emt 0:00:23]} Kd8 {[%emt 0:03:20]} 10. Nf3 {[%emt 0:01:56]} h6 {[%emt 0:01:50]} 11. Qb3 {[%emt 0:00:25]} Qe7 {[%emt 0:08:03]} 12. d4 {[%emt 0:02:13]} Nc6 {[%emt 0:05:48]} 13. Rd1 {[%emt 0:00:15]} Ncb4 {[%emt 0:03:00]} 14. Na3 {[%emt 0:01:52]} c4 {[%emt 0:15:48]} 15. Qa4 {[%emt 0:05:28]} Qd7 {[%emt 0:06:44]} 16. Qxd7+ {[%emt 0:01:29]} Kxd7 {[%emt 0:00:08]} 17. Ne5+ {[%emt 0:00:07]} Kd8 {[%emt 0:00:38]} 18. Nxg6 {[%emt 0:00:06]} fxg6 {[%emt 0:00:09]} 19. Nxc4 {[%emt 0:00:11]} Rc8 {[%emt 0:02:35]} 20. Ne5 {[%emt 0:00:06]} g5 {[%emt 0:01:19]} 21. Nf7+ {[%emt 0:00:01]} Ke7 {[%emt 0:00:39]} 22. Nxh8 {[%emt 0:00:08]} Kf6 {[%emt 0:00:07]} 23. e4 {[%emt 0:00:22]} g6 {[%emt 0:02:40]} 24. exd5 {[%emt 0:00:10]} exd5 {[%emt 0:00:10]} 25. Bd2 {[%emt 0:00:16]} Kg7 {[%emt 0:01:24]} 26. Bxb4 {[%emt 0:00:12]} Bxb4 {[%emt 0:00:08]} 27. Rac1 {[%emt 0:00:10]} 1-0

[Event "LJ Slovak Open 2022"]
[Site "Liptovsky Jan"]
[Date "2022.06.25"]
[Round "5.26"]
[White "Ambrozi, Peter"]
[Black "Mazak, Ryan"]
[Result "1-0"]
[ECO "A81"]
[WhiteElo "1994"]
[BlackElo "1575"]
[Annotator "NA RC"]
[PlyCount "69"]
[EventDate "2022.06.23"]
[EventType "swiss"]
[EventCountry "SVK"]
[SourceTitle "playchess.com"]
[Source "ChessBase"]
[SourceQuality "1"]
[TimeControl "3600+30"]

1. d4 {[%emt 0:00:13]} f5 {[%emt 0:00:05]} 2. g3 {[%emt 0:00:30]} Nf6 {[%emt 0:00:06]} 3. Bg2 {[%emt 0:00:07]} e6 {[%emt 0:00:15]} 4. Nh3 {[%emt 0:00:40]} d5 {[%emt 0:00:29]} 5. O-O {[%emt 0:00:50]} c6 {[%emt 0:00:17]} 6. b3 {[%emt 0:02:40]} Bd6 {[%emt 0:00:50]} 7. Bf4 {[%emt 0:01:20]} O-O {[%emt 0:02:43]} 8. c4 {[%emt 0:00:32]} h6 {[%emt 0:01:29]} 9. Nd2 {[%emt 0:01:36]} Ne4 {[%emt 0:01:18]} 10. Rc1 {[%emt 0:03:27]} Kh7 {[%emt 0:01:13]} 11. f3 {[%emt 0:03:29]} Nxd2 {[%emt 0:00:31]} 12. Qxd2 {[%emt 0:00:13]} Bxf4 {[%emt 0:00:25]} 13. Nxf4 {[%emt 0:01:47]} g5 {[%emt 0:00:25]} 14. Nh3 {[%emt 0:00:33]} Nd7 {[%emt 0:00:42]} 15. f4 {[%emt 0:01:43]} g4 {[%emt 0:04:38]} 16. Nf2 {[%emt 0:00:34]} Nf6 {[%emt 0:03:15]} 17. cxd5 {[%emt 0:01:38]} exd5 {[%emt 0:00:29]} 18. Nd3 {[%emt 0:00:21]} Ne4 {[%emt 0:02:40]} 19. Bxe4 {[%emt 0:00:22]} dxe4 {[%emt 0:00:27]} 20. Ne5 {[%emt 0:00:13]} Be6 {[%emt 0:01:50]} 21. e3 {[%emt 0:00:41]} Qe7 {[%emt 0:00:45]} 22. Rc5 {[%emt 0:02:10]} Rad8 {[%emt 0:01:45]} 23. Rfc1 {[%emt 0:01:02]} Rd5 {[%emt 0:04:22]} 24. b4 {[%emt 0:01:28]} Rfd8 {[%emt 0:04:45]} 25. Qb2 {[%emt 0:01:04]} h5 {[%emt 0:04:45]} 26. b5 {[%emt 0:03:21]} Bd7 {[%emt 0:00:45]} 27. Rxd5 {[%emt 0:01:59]} cxd5 {[%emt 0:00:31]} 28. Rc7 {[%emt 0:00:13]} Qe8 {[%emt 0:06:52]} 29. Rxb7 {[%emt 0:01:40]} Kg8 {[%emt 0:00:38]} 30. b6 {[%emt 0:03:28]} axb6 {[%emt 0:01:28]} 31. Qxb6 {[%emt 0:00:26]} Bc8 {[%emt 0:01:18]} 32. Rc7 {[%emt 0:01:07]} Qe6 {[%emt 0:01:19]} 33. Rc6 {[%emt 0:01:33]} Qe7 {[%emt 0:01:29]} 34. Rg6+ {[%emt 0:00:37]} Kf8 {[%emt 0:02:11]} 35. Nc6 {[%emt 0:01:26]} 1-0

[Event "LJ Slovak Open 2022"]
[Site "Liptovsky Jan"]
[Date "2022.06.25"]
[Round "5.27"]
[White "Subjakova, Kristina"]
[Black "Kolesar, Peter"]
[Result "0-1"]
[ECO "C45"]
[WhiteElo "1623"]
[BlackElo "1969"]
[Annotator "NA RC"]
[PlyCount "62"]
[EventDate "2022.06.23"]
[EventType "swiss"]
[EventCountry "SVK"]
[SourceTitle "playchess.com"]
[Source "ChessBase"]
[SourceQuality "1"]
[TimeControl "3600+30"]

1. e4 {[%emt 0:00:05]} e5 {[%emt 0:01:25]} 2. Nf3 {[%emt 0:00:08]} Nc6 {[%emt 0:00:05]} 3. d4 {[%emt 0:00:07]} exd4 {[%emt 0:00:13]} 4. Nxd4 {[%emt 0:00:05]} Nf6 {[%emt 0:00:49]} 5. Nxc6 {[%emt 0:00:10]} bxc6 {[%emt 0:00:35]} 6. e5 {[%emt 0:00:09]} Qe7 {[%emt 0:01:36]} 7. Qe2 {[%emt 0:00:06]} Nd5 {[%emt 0:00:15]} 8. c4 {[%emt 0:00:14]} Nb6 {[%emt 0:00:05]} 9. b3 {[%emt 0:00:10]} Qe6 {[%emt 0:03:28]} 10. Bb2 {[%emt 0:01:02]} Bb4+ {[%emt 0:02:01]} 11. Nc3 {[%emt 0:00:46]} O-O {[%emt 0:00:18]} 12. O-O-O {[%emt 0:01:30]} Re8 {[%emt 0:04:36]} 13. Re1 {[%emt 0:01:50]} a5 {[%emt 0:00:38]} 14. a4 {[%emt 0:02:44]} d5 {[%emt 0:06:53]} 15. exd6 {[%emt 0:00:39]} Qh6+ {[%emt 0:02:23]} 16. Qd2 {[%emt 0:00:33]} Rxe1+ {[%emt 0:00:45]} 17. Kc2 {[%emt 0:00:10]} Qxd2+ {[%emt 0:04:06]} 18. Kxd2 {[%emt 0:00:07]} Re8 {[%emt 0:00:17]} 19. dxc7 {[%emt 0:00:11]} Ra7 {[%emt 0:00:53]} 20. Kc2 {[%emt 0:00:54]} Bf5+ {[%emt 0:00:16]} 21. Bd3 {[%emt 0:00:09]} Bxd3+ {[%emt 0:00:11]} 22. Kxd3 {[%emt 0:00:07]} Rxc7 {[%emt 0:00:08]} 23. Rd1 {[%emt 0:00:47]} Rd7+ {[%emt 0:00:11]} 24. Kc2 {[%emt 0:00:07]} Rxd1 {[%emt 0:00:07]} 25. Kxd1 {[%emt 0:00:08]} f5 {[%emt 0:00:23]} 26. Kd2 {[%emt 0:00:25]} Nd7 {[%emt 0:00:14]} 27. Kd3 {[%emt 0:00:20]} Nc5+ {[%emt 0:00:13]} 28. Kc2 {[%emt 0:00:10]} Kf7 {[%emt 0:00:26]} 29. h3 {[%emt 0:01:10]} h5 {[%emt 0:00:18]} 30. h4 {[%emt 0:00:14]} g6 {[%emt 0:00:34]} 31. g3 {[%emt 0:00:05]} Re1 {[%emt 0:00:38]} 0-1

[Event "LJ Slovak Open 2022"]
[Site "Liptovsky Jan"]
[Date "2022.06.25"]
[Round "5.28"]
[White "Kaminsky, Ladislav"]
[Black "Gajdosik, Marian"]
[Result "1/2-1/2"]
[ECO "A41"]
[WhiteElo "1615"]
[BlackElo "1902"]
[Annotator "NA RC"]
[PlyCount "109"]
[EventDate "2022.06.23"]
[EventType "swiss"]
[EventCountry "SVK"]
[SourceTitle "playchess.com"]
[Source "ChessBase"]
[SourceQuality "1"]
[TimeControl "3600+30"]

1. Nf3 {[%emt 0:17:13]} d6 {[%emt 0:00:27]} 2. d4 {[%emt 0:00:44]} Nd7 {[%emt 0:00:06]} 3. c4 {[%emt 0:01:01]} e5 {[%emt 0:00:26]} 4. e4 {[%emt 0:00:56]} h6 {[%emt 0:00:09]} 5. Be3 {[%emt 0:00:46]} Qf6 {[%emt 0:00:13]} 6. Nc3 {[%emt 0:01:21]} c6 {[%emt 0:00:05]} 7. d5 {[%emt 0:01:36]} Ne7 {[%emt 0:00:10]} 8. Be2 {[%emt 0:00:38]} Ng6 {[%emt 0:00:10]} 9. O-O {[%emt 0:00:49]} Be7 {[%emt 0:00:06]} 10. h3 {[%emt 0:01:08]} O-O {[%emt 0:00:09]} 11. Nh2 {[%emt 0:01:01]} Nf4 {[%emt 0:00:30]} 12. Qd2 {[%emt 0:07:22]} Nxe2+ {[%emt 0:01:26]} 13. Nxe2 {[%emt 0:00:15]} Qg6 {[%emt 0:01:39]} 14. Ng3 {[%emt 0:04:58]} Nf6 {[%emt 0:00:31]} 15. Qc2 {[%emt 0:01:33]} h5 {[%emt 0:01:25]} 16. Nf3 {[%emt 0:00:48]} Nh7 {[%emt 0:01:08]} 17. Nh2 {[%emt 0:03:41]} h4 {[%emt 0:00:07]} 18. Nf5 {[%emt 0:00:18]} Bxf5 {[%emt 0:02:10]} 19. exf5 {[%emt 0:00:06]} Qh5 {[%emt 0:00:04]} 20. Qe4 {[%emt 0:01:58]} g6 {[%emt 0:00:11]} 21. fxg6 {[%emt 0:01:19]} Qxg6 {[%emt 0:00:23]} 22. Qxg6+ {[%emt 0:00:44]} fxg6 {[%emt 0:00:07]} 23. dxc6 {[%emt 0:02:35]} bxc6 {[%emt 0:00:28]} 24. Ng4 {[%emt 0:00:22]} Bg5 {[%emt 0:00:27]} 25. Rad1 {[%emt 0:02:50]} Bxe3 {[%emt 0:00:32]} 26. fxe3 {[%emt 0:01:52]} Rxf1+ {[%emt 0:00:14]} 27. Kxf1 {[%emt 0:01:07]} Rd8 {[%emt 0:00:26]} 28. Ke2 {[%emt 0:01:11]} e4 {[%emt 0:01:06]} 29. Rf1 {[%emt 0:00:32]} Kg7 {[%emt 0:00:38]} 30. Rf4 {[%emt 0:01:39]} d5 {[%emt 0:00:16]} 31. Ne5 {[%emt 0:01:28]} Nf6 {[%emt 0:01:38]} 32. Nxc6 {[%emt 0:01:49]} Rd6 {[%emt 0:00:19]} 33. Na5 {[%emt 0:01:54]} Ra6 {[%emt 0:00:52]} 34. b4 {[%emt 0:01:54]} dxc4 {[%emt 0:00:22]} 35. Kd2 {[%emt 0:02:43]} Rd6+ {[%emt 0:00:27]} 36. Kc2 {[%emt 0:01:02]} c3 {[%emt 0:00:14]} 37. Nc4 {[%emt 0:01:38]} Rd5 {[%emt 0:04:20]} 38. Kxc3 {[%emt 0:00:48]} Rg5 {[%emt 0:00:06]} 39. Rf2 {[%emt 0:00:43]} Nd5+ {[%emt 0:00:44]} 40. Kb3 {[%emt 0:00:32]} Rg3 {[%emt 0:00:12]} 41. a4 {[%emt 0:02:24]} Nxe3 {[%emt 0:00:13]} 42. Nxe3 {[%emt 0:00:12]} Rxe3+ {[%emt 0:00:09]} 43. Kc4 {[%emt 0:00:02]} Re1 {[%emt 0:00:49]} 44. a5 {[%emt 0:01:47]} e3 {[%emt 0:00:08]} 45. Rc2 {[%emt 0:00:47]} e2 {[%emt 0:08:50]} 46. Kd3 {[%emt 0:00:49]} Rb1 {[%emt 0:00:10]} 47. Kxe2 {[%emt 0:00:14]} Rxb4 {[%emt 0:00:09]} 48. Rc7+ {[%emt 0:00:05]} Kf6 {[%emt 0:00:13]} 49. Rxa7 {[%emt 0:00:13]} Kg5 {[%emt 0:00:41]} 50. a6 {[%emt 0:00:20]} Ra4 {[%emt 0:00:14]} 51. Ra8 {[%emt 0:00:27]} Ra2+ {[%emt 0:02:15]} 52. Kf3 {[%emt 0:00:09]} Ra3+ {[%emt 0:00:09]} 53. Kf2 {[%emt 0:00:09]} Ra2+ {[%emt 0:00:06]} 54. Kf3 {[%emt 0:00:06]} Ra3+ {[%emt 0:03:12]} 55. Kf2 {[%emt 0:00:05]} 1/2-1/2

[Event "LJ Slovak Open 2022"]
[Site "Liptovsky Jan"]
[Date "2022.06.25"]
[Round "5.29"]
[White "Mikula, Maciej"]
[Black "Goga, Frantisek"]
[Result "0-1"]
[ECO "A04"]
[WhiteElo "1567"]
[BlackElo "1900"]
[Annotator "NA RC"]
[PlyCount "76"]
[EventDate "2022.06.23"]
[EventType "swiss"]
[EventCountry "SVK"]
[SourceTitle "playchess.com"]
[Source "ChessBase"]
[SourceQuality "1"]
[TimeControl "3600+30"]

1. e4 {[%emt 0:00:44]} c5 {[%emt 0:02:31]} 2. Nf3 {[%emt 0:00:41]} d6 {[%emt 0:00:04]} 3. d3 {[%emt 0:00:40]} Nc6 {[%emt 0:00:18]} 4. g3 {[%emt 0:00:55]} g6 {[%emt 0:00:12]} 5. Bg2 {[%emt 0:00:40]} Bg7 {[%emt 0:00:04]} 6. O-O {[%emt 0:00:47]} e6 {[%emt 0:01:31]} 7. Re1 {[%emt 0:00:46]} Nge7 {[%emt 0:00:21]} 8. Nbd2 {[%emt 0:00:57]} a6 {[%emt 0:01:26]} 9. Nf1 {[%emt 0:01:12]} O-O {[%emt 0:06:41]} 10. c3 {[%emt 0:01:02]} b5 {[%emt 0:04:13]} 11. h4 {[%emt 0:02:16]} b4 {[%emt 0:03:17]} 12. d4 {[%emt 0:02:12]} bxc3 {[%emt 0:01:52]} 13. bxc3 {[%emt 0:00:21]} Rb8 {[%emt 0:03:56]} 14. N1h2 {[%emt 0:03:54]} cxd4 {[%emt 0:09:13]} 15. cxd4 {[%emt 0:01:06]} Bd7 {[%emt 0:00:34]} 16. Ba3 {[%emt 0:06:16]} Nc8 {[%emt 0:03:53]} 17. e5 {[%emt 0:05:56]} Qa5 {[%emt 0:02:45]} 18. Qd3 {[%emt 0:02:03]} Rd8 {[%emt 0:03:35]} 19. Ng4 {[%emt 0:08:02]} dxe5 {[%emt 0:06:34]} 20. dxe5 {[%emt 0:03:07]} Nb4 {[%emt 0:04:50]} 21. Bxb4 {[%emt 0:06:38]} Rxb4 {[%emt 0:00:32]} 22. Qd2 {[%emt 0:03:30]} Be8 {[%emt 0:03:37]} 23. Qg5 {[%emt 0:00:57]} h5 {[%emt 0:01:03]} 24. Nf6+ {[%emt 0:01:32]} Bxf6 {[%emt 0:02:25]} 25. Qxf6 {[%emt 0:00:35]} Rd7 {[%emt 0:02:38]} 26. Rad1 {[%emt 0:02:16]} Rbb7 {[%emt 0:01:44]} 27. Ng5 {[%emt 0:01:41]} Ra7 {[%emt 0:01:07]} 28. Bh3 {[%emt 0:03:28]} Re7 {[%emt 0:02:14]} 29. Nxe6 {[%emt 0:03:36]} fxe6 {[%emt 0:00:22]} 30. Bxe6+ {[%emt 0:00:07]} Kh7 {[%emt 0:00:20]} 31. Bxc8 {[%emt 0:00:33]} Rf7 {[%emt 0:00:23]} 32. Qg5 {[%emt 0:01:04]} Qc5 {[%emt 0:00:02]} 33. Qe3 {[%emt 0:02:25]} Qxc8 {[%emt 0:00:03]} 34. e6 {[%emt 0:00:21]} Rfe7 {[%emt 0:00:17]} 35. Rd7 {[%emt 0:00:35]} Rc7 {[%emt 0:01:06]} 36. Red1 {[%emt 0:01:39]} Bxd7 {[%emt 0:00:23]} 37. exd7 {[%emt 0:01:25]} Rcxd7 {[%emt 0:00:26]} 38. Rxd7 {[%emt 0:00:09]} Qxd7 {[%emt 0:00:25]} 0-1

[Event "LJ Slovak Open 2022"]
[Site "Liptovsky Jan"]
[Date "2022.06.25"]
[Round "5.30"]
[White "Skutil, Frantisek Elias"]
[Black "Rak, Martin"]
[Result "0-1"]
[ECO "C11"]
[WhiteElo "1552"]
[BlackElo "1849"]
[Annotator "NA RC"]
[PlyCount "42"]
[EventDate "2022.06.23"]
[EventType "swiss"]
[EventCountry "SVK"]
[SourceTitle "playchess.com"]
[Source "ChessBase"]
[SourceQuality "1"]
[TimeControl "3600+30"]

1. e4 {[%emt 0:00:04]} e6 {[%emt 0:00:04]} 2. d4 {[%emt 0:00:05]} d5 {[%emt 0:00:03]} 3. Nc3 {[%emt 0:00:08]} Nf6 {[%emt 0:00:05]} 4. e5 {[%emt 0:00:05]} Nfd7 {[%emt 0:00:04]} 5. Nge2 {[%emt 0:02:08]} c5 {[%emt 0:00:07]} 6. f4 {[%emt 0:06:33]} Nc6 {[%emt 0:00:37]} 7. Be3 {[%emt 0:03:57]} Qb6 {[%emt 0:03:02]} 8. Rb1 {[%emt 0:01:32]} cxd4 {[%emt 0:02:54]} 9. Bxd4 {[%emt 0:02:07]} Nxd4 {[%emt 0:00:35]} 10. Qxd4 {[%emt 0:01:26]} Bc5 {[%emt 0:00:22]} 11. Qd3 {[%emt 0:00:51]} Bf2+ {[%emt 0:02:20]} 12. Kd1 {[%emt 0:00:49]} O-O {[%emt 0:02:42]} 13. g4 {[%emt 0:05:26]} Nc5 {[%emt 0:03:42]} 14. Qf3 {[%emt 0:00:33]} Ne4 {[%emt 0:00:49]} 15. g5 {[%emt 0:02:16]} Bd7 {[%emt 0:04:46]} 16. h4 {[%emt 0:01:45]} Bc6 {[%emt 0:05:40]} 17. Bg2 {[%emt 0:00:40]} Be3 {[%emt 0:02:59]} 18. Ke1 {[%emt 0:12:55]} Nd2 {[%emt 0:03:20]} 19. Qh3 {[%emt 0:01:45]} Nxb1 {[%emt 0:01:32]} 20. Nxb1 {[%emt 0:00:24]} d4 {[%emt 0:01:28]} 21. b3 {[%emt 0:00:22]} Qa5+ {[%emt 0:00:51]} 0-1

[Event "LJ Slovak Open 2022"]
[Site "Liptovsky Jan"]
[Date "2022.06.25"]
[Round "5.31"]
[White "Janik, Marek Tobias"]
[Black "Bilik, Matej"]
[Result "1-0"]
[ECO "A25"]
[WhiteElo "1840"]
[BlackElo "1553"]
[Annotator "NA RC"]
[PlyCount "51"]
[EventDate "2022.06.23"]
[EventType "swiss"]
[EventCountry "SVK"]
[SourceTitle "playchess.com"]
[Source "ChessBase"]
[SourceQuality "1"]
[TimeControl "3600+30"]

1. c4 {[%emt 0:00:02]} e5 {[%emt 0:00:05]} 2. Nc3 {[%emt 0:00:03]} Nc6 {[%emt 0:00:10]} 3. g3 {[%emt 0:00:09]} Bc5 {[%emt 0:00:08]} 4. Bg2 {[%emt 0:00:11]} a6 {[%emt 0:00:12]} 5. e3 {[%emt 0:00:08]} d6 {[%emt 0:00:31]} 6. Nge2 {[%emt 0:00:06]} Ba7 {[%emt 0:00:11]} 7. O-O {[%emt 0:00:35]} h5 {[%emt 0:00:24]} 8. d4 {[%emt 0:01:55]} h4 {[%emt 0:01:10]} 9. d5 {[%emt 0:03:45]} Nce7 {[%emt 0:01:53]} 10. e4 {[%emt 0:07:19]} Ng6 {[%emt 0:06:53]} 11. Qd3 {[%emt 0:03:30]} hxg3 {[%emt 0:08:20]} 12. Qxg3 {[%emt 0:01:36]} Nf6 {[%emt 0:08:59]} 13. Bg5 {[%emt 0:06:53]} Bd7 {[%emt 0:02:32]} 14. Kh1 {[%emt 0:03:13]} Nh5 {[%emt 0:03:24]} 15. Bxd8 {[%emt 0:00:25]} Nxg3+ {[%emt 0:00:11]} 16. fxg3 {[%emt 0:01:13]} Rxd8 {[%emt 0:00:11]} 17. Ng1 {[%emt 0:09:29]} Ke7 {[%emt 0:04:25]} 18. Nf3 {[%emt 0:00:05]} f6 {[%emt 0:00:30]} 19. b4 {[%emt 0:02:41]} Rh7 {[%emt 0:02:23]} 20. Rac1 {[%emt 0:02:03]} Rdh8 {[%emt 0:03:22]} 21. Rc2 {[%emt 0:02:24]} f5 {[%emt 0:03:58]} 22. exf5 {[%emt 0:03:25]} Bxf5 {[%emt 0:00:13]} 23. Rd2 {[%emt 0:00:50]} Kd8 {[%emt 0:04:44]} 24. Re1 {[%emt 0:03:50]} Nf8 {[%emt 0:07:22]} 25. Ne4 {[%emt 0:00:30]} Bxe4 {[%emt 0:01:12]} 26. Rxe4 {[%emt 0:01:53]} 1-0